bitfinex/quotes_ETHUSD_20250413
["timestamp","ask_amount","ask_price","bid_price","bid_amount"]
[1744558804408,3.0,1583.1,1582.8,6.3177]
[1744558804610,9.31672,1583.1,1583.0,0.16690316]
[1744558804811,9.31672,1583.1,1582.8,6.3177]
[1744558805011,19.97775,1583.1,1583.0,0.16690316]
[1744558805312,19.97775,1583.1,1582.6,0.00124051]
[1744558805313,0.794,1582.7,1582.6,0.00124051]
[1744558805715,0.794,1582.7,1582.6,0.15421203]
[1744558805917,7.11231,1582.7,1582.6,0.15421203]
[1744558809325,11.15746723,1582.7,1582.6,0.15421203]
[1744558809698,11.15746723,1582.7,1582.6,0.00124051]
[1744558811497,10.60746723,1582.7,1582.6,0.00124051]
[1744558811699,10.12741,1582.7,1582.6,0.00124051]
[1744558812302,10.12741,1582.7,1582.6,0.15421203]
[1744558814432,10.12741,1582.7,1582.6,0.15226823]
[1744558814810,6.31872,1582.6,1582.2,7.13976]
[1744558815008,6.31872,1582.6,1582.3,6.31983]
[1744558815424,10.12741,1582.7,1582.4,6.31947]
[1744558816226,10.12741,1582.7,1582.3,6.31974]
[1744558816407,6.31888,1582.6,1582.3,6.31974]
[1744558816603,0.8091,1582.7,1582.2,3.93643702]
[1744558816808,6.548,1582.8,1582.6,6.31853]
[1744558817003,6.548,1582.8,1582.7,6.31831]
[1744558817317,6.548,1582.8,1582.7,7.09251]
[1744558817523,65.53489208,1583.0,1582.8,6.31791]
[1744558817524,58.42081208,1583.0,1582.8,6.31791]
[1744558817719,4.23181208,1583.0,1582.9,6.31751]
[1744558818030,4.23181208,1583.0,1582.9,7.09941]
[1744558818948,4.23181208,1583.1,1583.0,6.31711]
[1744558819353,4.23181208,1583.1,1582.9,0.7819]
[1744558819643,4.23181208,1583.1,1582.8,6.3179]
[1744558820201,10.54869208,1583.1,1582.7,7.10002]
[1744558821422,10.54869208,1583.1,1582.7,13.41812]
[1744558821607,7.08512,1583.0,1582.6,6.31866]
[1744558822010,13.40247,1583.0,1582.7,0.15227617]
[1744558822425,13.40247,1583.0,1582.6,6.31866]
[1744558822616,6.31751,1582.9,1582.8,0.15227617]
[1744558822924,7.08512,1583.0,1582.7,0.15227617]
[1744558823122,7.08512,1583.0,1582.7,6.47056617]
[1744558823555,7.14916,1583.1,1582.8,6.3179]
[1744558823863,3.8324,1583.1,1582.8,6.3177]
[1744558824133,10.14921,1583.1,1582.9,0.15227617]
[1744558824351,10.14921,1583.1,1582.7,7.14248]
[1744558824552,3.8324,1583.1,1582.6,6.31853]
[1744558824718,7.14997,1582.9,1582.8,0.15227617]
[1744558824905,7.14997,1582.9,1582.6,6.31853]
[1744558825112,7.14997,1582.9,1582.7,0.15227617]
[1744558825336,7.14997,1582.9,1582.6,6.31853]
[1744558825337,0.8324,1582.9,1582.6,6.31853]
[1744558825653,0.8324,1582.9,1582.8,0.15431381]
[1744558825814,1.585696,1582.9,1582.6,12.63706]
[1744558826154,7.903306,1582.9,1582.7,0.15431381]
[1744558826570,7.903306,1582.9,1582.6,6.3185]
[1744558826766,7.903306,1582.9,1582.8,0.15507803]
[1744558826926,1.585696,1582.9,1582.6,12.63708]
[1744558827125,6.31732,1583.0,1582.5,0.8243]
[1744558827126,0.8324,1583.0,1582.8,0.15507803]
[1744558827367,0.8324,1583.0,1582.7,6.31815]
[1744558827603,0.8324,1583.0,1582.9,0.15507803]
[1744558827774,3.0,1583.1,1582.8,7.14209]
[1744558828077,3.0,1583.1,1582.9,0.15507803]
[1744558828834,9.31679,1583.1,1582.9,0.15507803]
[1744558829382,3.0,1583.1,1582.9,0.15507803]
[1744558829678,3.0,1583.1,1582.9,6.47254803]
[1744558830171,3.0,1583.1,1582.9,0.15507803]
[1744558830379,9.31687,1583.1,1582.9,0.15507803]
[1744558830575,15.63394,1583.1,1582.9,0.15507803]
[1744558830744,15.63394,1583.1,1582.7,7.07098]
[1744558830945,15.63394,1583.1,1583.0,0.15507803]
[1744558831135,15.63394,1583.1,1582.7,7.07098]
[1744558831349,3.0,1583.1,1583.0,0.15507803]
[1744558831555,3.0,1583.1,1582.8,6.31779]
[1744558831790,3.0,1583.1,1583.0,0.30758421]
[1744558832089,9.31674,1583.1,1582.8,6.31779]
[1744558832292,9.31674,1583.1,1583.0,0.30681999]
[1744558832495,9.31674,1583.1,1582.8,6.31779]
[1744558832656,9.31674,1583.1,1583.0,0.30681999]
[1744558832859,6.31723,1583.0,1582.7,7.07095]
[1744558833170,6.31723,1583.0,1582.8,0.30681999]
[1744558833365,9.31674,1583.1,1582.8,0.30681999]
[1744558833949,3.0,1583.1,1582.8,6.62455999]
[1744558834174,3.0,1583.1,1582.8,12.94231999]
[1744558834373,3.0,1583.1,1582.8,6.62455999]
[1744558834686,3.0,1583.0,1582.8,6.62455999]
[1744558836170,3.0,1583.1,1582.8,6.62455999]
[1744558837660,3.0,1583.1,1582.8,12.94228999]
[1744558837865,3.0,1583.1,1582.8,6.62454999]
[1744558838876,9.31678,1583.1,1582.8,6.62454999]
[1744558839686,3.0,1583.0,1582.8,6.62454999]
[1744558840393,3.0,1583.0,1582.8,0.30681999]
[1744558840718,0.8098,1582.7,1582.1,0.7687]
[1744558840920,6.31929,1582.5,1582.1,7.08911]
[1744558841086,1.441729,1582.4,1582.1,6.32041]
[1744558841897,7.761239,1582.4,1582.1,6.32041]
[1744558842195,1.441729,1582.4,1582.1,12.6409]
[1744558842376,1.441729,1582.4,1582.1,6.32041]
[1744558844087,1.441729,1582.4,1582.0,0.7687]
[1744558844397,1.441729,1582.4,1581.9,13.43516]
[1744558844398,6.32009,1582.3,1581.9,13.43516]
[1744558845298,7.12934,1582.4,1582.0,6.32097]
[1744558845504,3.0,1582.5,1582.2,13.43274]
[1744558845864,7.3521,1582.6,1582.4,6.31951]
[1744558846406,7.3521,1582.6,1582.3,6.3197]
[1744558846599,13.67096,1582.6,1582.2,13.43284]
[1744558846793,7.3521,1582.6,1582.3,6.3197]
[1744558847104,11.58391208,1582.6,1582.3,12.63946]
[1744558847273,17.90263208,1582.6,1582.3,6.3197]
[1744558849207,12.04795517,1582.6,1582.1,6.3207]
[1744558849374,12.63958,1582.4,1582.0,6.32093]
[1744558849570,6.31993,1582.3,1582.0,6.32093]
[1744558849774,0.78,1582.2,1582.0,6.32093]
[1744558852206,0.78,1582.2,1582.0,6.32089]
[1744558852379,0.78,1582.4,1582.1,6.32071]
[1744558853197,0.78,1582.4,1582.1,12.64142]
[1744558853403,6.32025,1582.3,1581.9,3.91763702]
[1744558853609,6.32025,1582.3,1581.9,10.23911702]
[1744558855615,12.64039,1582.3,1581.9,7.12228]
[1744558855776,0.7665,1582.2,1581.8,0.7888]
[1744558855981,6.32099,1582.1,1581.7,6.32217]
[1744558856274,12.64197,1582.1,1581.7,6.32217]
[1744558856908,6.32098,1582.1,1581.7,12.70753551]
[1744558857575,6.32098,1582.1,1581.7,12.64432]
[1744558857781,6.32098,1582.1,1581.7,12.70753552]
[1744558858715,6.32098,1582.1,1581.7,12.64432]
[1744558859616,7.3115,1582.2,1581.8,6.32184]
[1744558859923,13.63193,1582.2,1581.9,6.32136]
[1744558861312,19.95246,1582.2,1581.8,7.07815]
[1744558861683,6.32073,1582.1,1581.8,7.07815]
[1744558861984,6.32073,1582.1,1581.7,9.43906702]
[1744558862195,7.13417,1582.0,1581.7,9.43906702]
[1744558862403,0.813,1582.0,1581.7,15.76117702]
[1744558862814,7.13373,1582.1,1581.8,6.32174]
[1744558863920,7.13373,1582.1,1581.7,9.43894702]
[1744558864085,6.32112,1582.0,1581.7,9.43894702]
[1744558864281,6.32112,1582.0,1581.7,15.76105702]
[1744558864622,6.32112,1582.0,1581.8,0.28933238]
[1744558865943,7.13373,1582.1,1581.8,0.28933238]
[1744558866143,13.45467,1582.1,1581.8,0.28933238]
[1744558869825,7.13373,1582.1,1581.8,6.61122238]
[1744558870012,0.7966,1582.2,1582.0,6.3208]
[1744558870187,5.96,1582.3,1582.0,6.3208]
[1744558870388,18.60023,1582.3,1581.9,9.43817702]
[1744558870623,18.60023,1582.3,1581.9,6.32134]
[1744558870920,18.60023,1582.3,1582.0,0.28933238]
[1744558871921,6.32044,1582.2,1582.0,0.28933238]
[1744558872109,7.11731,1582.1,1581.7,12.64416]
[1744558872490,6.32151,1581.9,1581.8,0.29162421]
[1744558872702,6.32241,1581.7,1581.4,7.12385]
[1744558872927,6.32241,1581.7,1581.4,6.32335]
[1744558873114,6.32241,1581.7,1581.5,0.29162421]
[1744558873115,7.09191,1581.7,1581.5,0.29162421]
[1744558873292,0.7695,1581.7,1581.5,0.29162421]
[1744558873497,7.09106,1581.9,1581.6,6.32271]
[1744558873817,12.5,1582.0,1581.7,6.32226]
[1744558874017,12.5,1582.0,1581.7,12.95093807]
[1744558874602,12.5,1582.0,1581.9,6.32151]
[1744558874804,6.54,1582.0,1581.8,7.07318]
[1744558875002,6.54,1582.0,1581.7,13.39582]
[1744558875330,6.54,1582.0,1581.7,7.07356]
[1744558875531,19.18268,1582.0,1581.8,0.30651807]
[1744558875727,19.18268,1582.0,1581.6,9.43941702]
[1744558876099,12.86132,1582.0,1581.7,0.30651807]
[1744558876332,12.86132,1582.0,1581.6,9.43938702]
[1744558876630,12.86132,1582.0,1581.7,6.62865807]
[1744558877126,6.54,1582.0,1581.7,6.62875807]
[1744558877331,6.54,1582.0,1581.8,6.32178]
[1744558878025,6.54,1582.0,1581.9,0.30651807]
[1744558878598,9.54,1582.0,1581.9,0.30651807]
[1744558883402,3.0,1582.0,1581.9,6.62802807]
[1744558883734,3.0,1582.0,1581.9,7.92300188]
[1744558884349,3.0,1582.0,1581.9,0.30651807]
[1744558885151,3.0,1582.0,1581.9,6.62802807]
[1744558888806,3.0,1582.0,1581.9,0.30651807]
[1744558889015,3.8287,1582.0,1581.9,0.30651807]
[1744558889215,3.8287,1582.0,1581.8,6.32185]
[1744558889542,3.8287,1582.0,1581.9,0.30435252]
[1744558889907,3.0,1582.0,1581.9,6.62586252]
[1744558891042,3.0,1582.0,1581.9,7.92062077]
[1744558891340,3.0,1582.0,1581.9,8.70452077]
[1744558891914,6.54,1582.3,1582.0,6.32074]
[1744558892847,6.54,1582.3,1582.1,6.32065]
[1744558893948,6.54,1582.3,1582.0,6.32074]
[1744558894120,12.8601,1582.3,1582.0,6.32074]
[1744558894327,12.8601,1582.3,1582.1,0.30282441]
[1744558895313,19.18027,1582.3,1582.1,0.30282441]
[1744558895641,19.18027,1582.3,1581.9,13.4269]
[1744558895839,19.18027,1582.3,1582.2,0.30180567]
[1744558896042,19.18027,1582.3,1581.9,7.1054]
[1744558896337,7.07554,1582.2,1581.9,6.3215]
[1744558896532,7.07554,1582.2,1582.0,0.30180567]
[1744558896922,7.07554,1582.2,1581.8,12.64372]
[1744558897125,0.7551,1582.2,1582.1,0.30180567]
[1744558897447,6.54,1582.3,1582.1,0.30180567]
[1744558897759,6.54,1582.3,1582.1,6.32068]
[1744558897931,6.54,1582.3,1582.2,0.30180567]
[1744558898252,6.54,1582.3,1582.1,6.32068]
[1744558898452,6.54,1582.3,1582.2,0.30180567]
[1744558898648,9.54,1582.3,1582.2,0.30180567]
[1744558898944,9.54,1582.3,1582.0,12.64172]
[1744558899423,9.54,1582.3,1582.1,0.30180567]
[1744558900246,15.85996,1582.3,1582.1,0.30180567]
[1744558900551,0.817,1582.2,1582.1,0.30180567]
[1744558900915,0.817,1582.2,1581.9,6.32142]
[1744558901255,7.13731,1582.2,1581.9,6.32142]
[1744558901415,7.13731,1582.2,1582.0,0.18500567]
[1744558901751,0.817,1582.2,1582.0,0.29207233]
[1744558902552,7.13745,1582.2,1582.0,0.29207233]
[1744558902922,6.32071,1582.1,1581.8,6.32156]
[1744558903222,0.8292,1581.8,1581.5,6.32305]
[1744558903440,0.8292,1581.8,1581.5,12.646]
[1744558907350,0.8292,1581.8,1581.5,6.32295]
[1744558907567,7.866228,1581.8,1581.3,0.8292]
[1744558907858,0.8292,1581.8,1581.5,6.32307]
[1744558908025,0.8292,1581.8,1581.5,12.646]
[1744558908644,0.8292,1581.8,1581.5,6.32293]
[1744558909146,0.8292,1581.8,1581.6,0.27544465]
[1744558909525,0.8292,1581.8,1581.6,6.59786465]
[1744558909719,0.8292,1581.8,1581.6,6.32242]
[1744558909926,0.8292,1581.8,1581.7,0.27544465]
[1744558910354,0.8292,1581.8,1581.6,12.64506]
[1744558910523,0.8292,1581.8,1581.7,0.27544465]
[1744558910940,0.8292,1581.8,1581.6,6.32242]
[1744558911149,0.8292,1581.8,1581.7,0.27544465]
[1744558911350,1.56552,1581.8,1581.7,0.27544465]
[1744558911536,7.8875,1581.8,1581.5,6.32305]
[1744558911723,7.8875,1581.8,1581.7,0.27544465]
[1744558911926,7.8875,1581.8,1581.5,6.32305]
[1744558912427,7.8875,1581.8,1581.6,0.27544465]
[1744558912828,7.08889,1581.7,1581.6,0.27544465]
[1744558913030,7.87819,1581.7,1581.6,0.27544465]
[1744558913229,14.20079,1581.7,1581.3,6.32387]
[1744558913462,14.20079,1581.7,1581.6,0.25328319]
[1744558913751,14.20079,1581.7,1581.3,6.32387]
[1744558913960,14.20079,1581.7,1581.6,0.25328319]
[1744558914461,14.20079,1581.7,1581.3,6.32387]
[1744558914658,0.73632,1581.6,1581.3,12.64759]
[1744558914839,7.11161,1581.7,1581.4,6.32334]
[1744558915042,0.7893,1581.7,1581.4,6.32334]
[1744558915671,0.7893,1581.7,1581.5,6.3231]
[1744558915853,0.7893,1581.7,1581.4,6.32334]
[1744558916875,7.11174,1581.7,1581.3,13.44238]
[1744558918240,0.7893,1581.7,1581.5,6.32284]
[1744558918442,7.3613,1581.9,1581.6,6.32271]
[1744558918673,13.68288,1581.9,1581.6,6.32271]
[1744558918843,20.00462,1581.9,1581.5,6.3231]
[1744558919050,13.68288,1581.9,1581.5,12.64605]
[1744558920075,17.91469208,1581.9,1581.5,12.64605]
[1744558920271,24.23643208,1581.9,1581.5,12.64605]
[1744558920445,6.32196,1581.8,1581.5,6.32295]
[1744558920962,3.0,1581.7,1581.5,6.32295]
[1744558921161,6.3228,1581.6,1581.3,6.32377]
[1744558922541,6.3228,1581.6,1581.3,6.32378]
[1744558923065,6.3228,1581.6,1581.3,12.64749]
[1744558923467,6.3228,1581.6,1581.3,6.32371]
[1744558924078,6.3228,1581.6,1581.2,12.6485]
[1744558924277,0.7623,1581.5,1581.2,12.6485]
[1744558924572,0.7623,1581.5,1581.3,12.90091319]
[1744558924775,10.08473,1581.7,1581.4,6.32337]
[1744558925083,10.08473,1581.7,1581.5,0.25811938]
[1744558926472,16.40724,1581.7,1581.5,0.25811938]
[1744558927171,16.40724,1581.7,1581.3,6.32372]
[1744558927371,15.64494,1581.7,1581.6,0.25811938]
[1744558927578,16.40724,1581.7,1581.3,6.32372]
[1744558927784,16.40724,1581.7,1581.6,0.25761026]
[1744558927963,16.40724,1581.7,1581.3,12.64744]
[1744558928152,16.40724,1581.7,1581.6,0.25761026]
[1744558928353,16.40724,1581.7,1581.3,12.64744]
[1744558928555,3.7623,1581.7,1581.6,0.25761026]
[1744558928759,3.0,1581.7,1581.5,6.32297]
[1744558929275,3.0,1581.7,1581.6,0.25773753]
[1744558929465,9.32231,1581.7,1581.6,0.25773753]
[1744558929782,10.11321,1581.7,1581.6,0.25773753]
[1744558929946,16.43574,1581.7,1581.3,6.32388]
[1744558930152,16.43574,1581.7,1581.6,0.25748298]
[1744558930379,6.32282,1581.6,1581.2,12.6485]
[1744558930752,12.64573,1581.6,1581.2,12.6485]
[1744558931248,6.32282,1581.6,1581.2,12.6485]
[1744558931649,6.32282,1581.6,1581.3,6.32388]
[1744558932284,10.11327,1581.7,1581.4,6.32347]
[1744558932454,10.11327,1581.7,1581.3,12.64776]
[1744558932656,6.32277,1581.6,1581.3,6.32388]
[1744558933762,6.32277,1581.6,1581.2,12.64854]
[1744558935089,6.32277,1581.6,1581.3,6.3239]
[1744558936084,6.32277,1581.6,1581.3,12.64768]
[1744558936286,16.43578,1581.7,1581.3,12.64768]
[1744558936586,12.85173,1581.6,1581.3,6.32378]
[1744558937479,12.85173,1581.6,1581.2,6.32428]
[1744558937480,0.7742,1581.5,1581.2,12.64856]
[1744558938379,0.7742,1581.5,1581.2,6.32428]
[1744558938691,0.7742,1581.5,1581.2,12.64842]
[1744558938989,0.7742,1581.5,1581.2,6.32414]
[1744558939291,0.7742,1581.5,1581.2,12.64827]
[1744558939588,0.7742,1581.5,1581.3,0.25964687]
[1744558939993,8.60025,1581.5,1581.3,0.25964687]
[1744558940211,10.67531,1581.4,1581.3,0.25964687]
[1744558940369,6.32442,1581.2,1580.8,13.44406]
[1744558940891,6.32442,1581.2,1580.9,0.23845146]
[1744558941057,6.32442,1581.2,1580.9,6.56394146]
[1744558941261,6.32442,1581.2,1580.9,6.32549]
[1744558941461,6.32442,1581.2,1581.0,0.24162747]
[1744558942191,7.12651,1581.1,1581.0,0.24162747]
[1744558942393,7.12651,1581.1,1580.7,12.65258]
[1744558942894,0.8018,1581.1,1580.8,6.5529946]
[1744558943292,6.529,1581.2,1580.9,6.32517]
[1744558943493,7.3595,1581.2,1580.9,12.65083]
[1744558943791,7.3595,1581.2,1580.9,6.32532]
[1744558943993,7.3595,1581.2,1581.0,0.2272846]
[1744558944193,13.68384,1581.2,1581.0,0.2272846]
[1744558945292,6.32471,1581.1,1581.0,0.2272846]
[1744558945797,6.32471,1581.1,1580.8,6.32588]
[1744558946112,20.00854,1581.2,1580.8,12.65176]
[1744558946311,13.68384,1581.2,1580.9,0.2272846]
[1744558946605,20.00838,1581.2,1580.9,0.2272846]
[1744558946772,20.00838,1581.2,1580.8,6.32578]
[1744558946971,20.00838,1581.2,1581.0,0.2272846]
[1744558947215,13.68384,1581.2,1580.8,12.65154]
[1744558947733,13.68384,1581.2,1580.9,0.2272846]
[1744558948069,13.68384,1581.2,1580.8,12.65154]
[1744558948272,20.00838,1581.2,1581.0,0.2272846]
[1744558948584,20.00838,1581.2,1580.8,12.6515]
[1744558948969,20.00838,1581.2,1580.9,0.2272846]
[1744558949367,13.68384,1581.2,1580.8,12.6515]
[1744558949591,13.68384,1581.2,1581.0,0.2272846]
[1744558949895,23.00845,1581.2,1581.1,0.2272846]
[1744558950301,23.00845,1581.2,1580.8,6.32574]
[1744558950678,23.00838,1581.2,1580.9,0.2272846]
[1744558951099,23.00838,1581.2,1580.8,6.32574]
[1744558951280,23.00838,1581.2,1581.0,0.2272846]
[1744558951497,6.32475,1581.1,1580.8,6.32574]
[1744558952002,6.32475,1581.1,1580.9,0.2272846]
[1744558952203,6.32475,1581.1,1580.8,6.32574]
[1744558952511,6.32475,1581.1,1580.9,0.2272846]
[1744558952822,6.32475,1581.1,1580.8,12.65151]
[1744558953121,6.32475,1581.1,1580.9,0.22842968]
[1744558953438,16.68384,1581.2,1580.9,6.32545]
[1744558953601,10.3595,1581.2,1581.0,0.22842968]
[1744558954102,16.68388,1581.2,1581.0,0.22842968]
[1744558954626,23.00848,1581.2,1581.0,0.22842968]
[1744558954827,16.68388,1581.2,1580.8,13.47013]
[1744558955006,16.68388,1581.2,1580.9,0.22842968]
[1744558955329,16.68388,1581.2,1580.8,13.47013]
[1744558955528,16.68388,1581.2,1581.0,0.22842968]
[1744558955726,23.00847,1581.2,1580.8,13.47012]
[1744558956221,16.68388,1581.2,1580.9,0.22842968]
[1744558956429,16.68388,1581.2,1580.8,13.47012]
[1744558956595,16.68388,1581.2,1580.9,0.22842968]
[1744558956791,16.68388,1581.2,1580.8,13.47012]
[1744558957006,16.68388,1581.2,1580.9,0.22842968]
[1744558957201,23.00848,1581.2,1580.8,7.14436]
[1744558957407,23.00848,1581.2,1580.9,0.22842968]
[1744558957618,23.00848,1581.2,1580.8,6.32576]
[1744558957818,23.00848,1581.2,1580.9,0.22842968]
[1744558958012,23.00848,1581.2,1580.8,6.32576]
[1744558958217,23.00848,1581.2,1580.9,0.22842968]
[1744558958424,23.00848,1581.2,1580.8,6.32573]
[1744558958608,23.00848,1581.2,1580.9,0.22842968]
[1744558958810,23.00848,1581.2,1580.8,6.32573]
[1744558959031,23.00848,1581.2,1580.9,0.22842968]
[1744558959232,6.32474,1581.1,1580.8,6.32573]
[1744558959432,6.32474,1581.1,1580.9,0.22842968]
[1744558959634,6.32474,1581.1,1580.8,6.32573]
[1744558959812,6.32474,1581.1,1580.9,0.22842968]
[1744558960131,6.32474,1581.1,1580.8,6.32573]
[1744558960334,6.32474,1581.1,1581.0,0.22842968]
[1744558960533,6.32474,1581.1,1580.8,6.32573]
[1744558960733,6.32474,1581.1,1581.0,0.22842968]
[1744558960924,6.32474,1581.1,1580.8,6.32573]
[1744558961540,6.32474,1581.1,1580.9,0.22842968]
[1744558961835,6.32474,1581.1,1580.8,6.32573]
[1744558962036,6.32474,1581.1,1580.9,0.22842968]
[1744558962225,6.32474,1581.1,1580.8,6.32573]
[1744558962535,6.32474,1581.1,1580.9,0.22842968]
[1744558963037,6.32474,1581.1,1580.8,6.32573]
[1744558963205,12.64976,1581.1,1580.9,0.22970203]
[1744558963406,3.0,1581.0,1580.7,13.47095]
[1744558963624,3.0,1581.0,1580.8,6.55530203]
[1744558963828,3.0,1581.0,1580.8,12.88105203]
[1744558964037,9.32525,1581.0,1580.8,0.22970203]
[1744558964211,3.0,1581.0,1580.8,0.22970203]
[1744558964413,3.7614,1581.0,1580.8,0.22970203]
[1744558966165,6.32551,1580.9,1580.8,0.22970203]
[1744558966449,12.65129,1580.9,1580.5,7.14773]
[1744558966762,6.32551,1580.9,1580.6,6.53806494]
[1744558969956,6.524,1580.9,1580.6,12.86464494]
[1744558970161,6.524,1580.9,1580.8,6.32591]
[1744558970718,6.524,1580.9,1580.8,0.21144494]
[1744558971016,12.84951,1580.9,1580.5,13.46356]
[1744558971216,12.84951,1580.9,1580.6,0.21144494]
[1744558972032,7.07855,1580.8,1580.6,0.21144494]
[1744558972230,0.7526,1580.8,1580.6,0.21144494]
[1744558973354,6.32631,1580.7,1580.6,0.21144494]
[1744558973648,13.4048,1580.8,1580.4,13.46455]
[1744558973820,13.4048,1580.8,1580.5,0.21144494]
[1744558974024,0.7822,1580.6,1580.5,0.21144494]
[1744558974226,7.10891,1580.6,1580.3,6.32773]
[1744558974429,6.524,1580.5,1580.4,0.21525952]
[1744558974628,7.234891,1580.5,1580.2,7.10461]
[1744558974824,7.234891,1580.5,1580.3,0.2153867]
[1744558975024,6.524,1580.5,1580.3,6.5431467]
[1744558975329,6.524,1580.5,1580.3,0.2153867]
[1744558975540,6.524,1580.5,1580.3,6.5432867]
[1744558976346,6.524,1580.5,1580.3,0.2153867]
[1744558976744,6.524,1580.5,1580.3,6.5432667]
[1744558977928,6.524,1580.5,1580.4,6.32751]
[1744558978128,6.524,1580.5,1580.3,7.3745867]
[1744558978329,6.524,1580.5,1580.3,13.48691]
[1744558978525,7.1764,1580.5,1580.4,0.2153867]
[1744558978932,7.933,1580.5,1580.3,6.32773]
[1744558979126,7.2806,1580.5,1580.4,0.2153867]
[1744558979549,6.524,1580.5,1580.4,0.2153867]
[1744558980064,6.524,1580.5,1580.4,0.22378014]
[1744558980352,6.524,1580.5,1580.2,6.32812]
[1744558980550,6.524,1580.5,1580.4,0.22378014]
[1744558980759,6.524,1580.5,1580.2,6.32812]
[1744558981056,12.85111,1580.5,1580.2,6.32812]
[1744558981258,12.85111,1580.5,1580.3,0.22378014]
[1744558981460,6.524,1580.5,1580.3,0.22378014]
[1744558981632,8.0269,1580.5,1580.3,0.22378014]
[1744558981826,6.524,1580.5,1580.3,0.22378014]
[1744558982838,6.524,1580.5,1580.1,0.8481]
[1744558982839,13.41189,1580.4,1580.1,0.05]
[1744558983042,7.08411,1580.4,1580.2,0.22378014]
[1744558983247,0.708411,1580.3,1580.1,0.05]
[1744558983424,0.708411,1580.3,1580.2,0.22378014]
[1744558983629,0.708411,1580.3,1580.1,0.05]
[1744558983854,0.708411,1580.3,1580.2,0.22378014]
[1744558984062,0.708411,1580.3,1580.1,0.05]
[1744558984260,0.708411,1580.3,1580.2,0.22378014]
[1744558984428,0.708411,1580.3,1580.1,0.05]
[1744558984629,0.708411,1580.3,1580.2,0.22378014]
[1744558984827,0.708411,1580.3,1580.1,6.37867]
[1744558985063,6.524,1580.5,1580.3,6.32791]
[1744558985228,6.524,1580.5,1580.1,7.14663]
[1744558985429,12.85133,1580.5,1580.2,0.22378014]
[1744558985636,6.524,1580.5,1580.2,6.32828]
[1744558985846,6.524,1580.5,1580.3,6.55155014]
[1744558987463,6.524,1580.5,1580.3,0.22378014]
[1744558987663,12.85115,1580.5,1580.3,0.22378014]
[1744558988352,7.09361,1580.4,1580.3,0.22378014]
[1744558988553,0.7661,1580.4,1580.1,12.70688]
[1744558988747,7.2901,1580.5,1580.3,0.22378014]
[1744558988951,0.72901,1580.4,1580.2,12.65638]
[1744558989164,6.524,1580.5,1580.4,0.22378014]
[1744558989341,6.524,1580.5,1580.3,7.10391]
[1744558989849,6.524,1580.5,1580.4,0.22467064]
[1744558990247,12.85111,1580.5,1580.2,6.32824]
[1744558990439,0.6524,1580.4,1580.3,0.22467064]
[1744558990636,1.4185,1580.4,1580.1,6.37851]
[1744558990978,1.4185,1580.4,1580.2,0.22467064]
[1744558991137,1.4185,1580.4,1580.2,6.55298064]
[1744558991338,1.4185,1580.4,1580.2,6.32831]
[1744558991594,0.6524,1580.4,1580.3,0.22467064]
[1744558992271,6.524,1580.5,1580.3,0.22467064]
[1744558992656,12.85122,1580.5,1580.3,0.22467064]
[1744558994360,19.17871,1580.5,1580.3,0.22467064]
[1744558994668,15.85122,1580.5,1580.4,0.22467064]
[1744558994843,22.17862,1580.5,1580.1,7.15454]
[1744558995172,15.85122,1580.5,1580.2,0.22467064]
[1744558995472,22.17855,1580.5,1580.1,7.15454]
[1744558995641,22.17855,1580.5,1580.3,0.22467064]
[1744558995840,0.7994,1580.4,1580.1,6.37854]
[1744558996063,0.7994,1580.4,1580.2,0.22467064]
[1744558996268,0.7994,1580.4,1580.1,6.37854]
[1744558996473,7.12697,1580.4,1580.2,0.22467064]
[1744558996773,7.12697,1580.4,1580.1,6.37854]
[1744558996975,7.12697,1580.4,1580.3,0.22467064]
[1744558997175,7.12697,1580.4,1580.1,6.37854]
[1744558997336,7.12697,1580.4,1580.3,0.22467064]
[1744558997542,7.12697,1580.4,1580.1,0.05]
[1744558997742,7.12697,1580.4,1580.3,0.22467064]
[1744558997944,7.12697,1580.4,1580.1,0.05]
[1744558998571,0.7994,1580.4,1580.2,0.20991106]
[1744558998873,0.7994,1580.4,1580.2,6.32829]
[1744558998874,0.47694141,1580.4,1580.2,6.32829]
[1744558999076,15.85116,1580.5,1580.3,0.20991106]
[1744559000070,15.85116,1580.5,1580.1,12.7071]
[1744559000272,9.524,1580.5,1580.2,12.86618106]
[1744559000479,9.524,1580.5,1580.2,6.53804106]
[1744559000779,15.85114,1580.5,1580.2,6.53804106]
[1744559002382,22.17864,1580.5,1580.2,0.20991106]
[1744559002755,15.85114,1580.5,1580.1,12.70728]
[1744559002945,15.85114,1580.5,1580.3,0.20991106]
[1744559003142,9.524,1580.5,1580.2,6.32814]
[1744559003349,9.524,1580.5,1580.4,0.20991106]
[1744559003552,9.524,1580.5,1580.2,12.65628]
[1744559003878,9.524,1580.5,1580.2,6.32814]
[1744559004072,9.524,1580.5,1580.3,0.20991106]
[1744559004281,15.85113,1580.5,1580.3,0.20991106]
[1744559005378,3.0,1580.4,1580.3,0.20991106]
[1744559005575,9.32751,1580.4,1580.3,0.20991106]
[1744559005881,3.0,1580.4,1580.2,13.4401]
[1744559006047,3.0,1580.4,1580.3,0.20991106]
[1744559008579,3.0,1580.4,1580.3,6.53782106]
[1744559008780,4.23181208,1580.8,1580.7,7.10071]
[1744559009278,4.23181208,1580.8,1580.7,7.30909568]
[1744559010985,4.23181208,1580.8,1580.7,0.98278568]
[1744559011156,4.23181208,1580.8,1580.7,0.20838568]
[1744559011757,6.518,1580.9,1580.7,0.20838568]
[1744559011956,6.518,1580.9,1580.7,6.53466568]
[1744559012883,6.518,1580.9,1580.8,7.10031]
[1744559013263,6.518,1580.9,1580.8,7.30424787]